bitfinex-derivatives/quotes_SOLF0:USTF0_20250720
["timestamp","ask_amount","ask_price","bid_price","bid_amount"]
[1753027289249,6.16420723,182.02,182.0,5.4921]
[1753027289552,6.16420723,182.02,182.0,8.4921]
[1753027289855,2.97,182.03,182.01,3.0]
[1753027290151,2.97,182.02,182.01,3.0]
[1753027291052,2.97,182.02,182.01,8.4918]
[1753027293054,2.97,182.02,182.01,5.4918]
[1753027293253,107.51,182.02,182.0,5.4919]
[1753027293458,2.97,182.01,181.98,3.0]
[1753027293861,2.97,182.01,182.0,5.4921]
[1753027294561,2.97,182.01,182.0,8.4921]
[1753027295053,2.97,182.03,182.02,8.4915]
[1753027295255,9.13420723,182.05,182.03,3.0]
[1753027295457,104.52,182.04,182.03,3.0]
[1753027295651,2.97,182.05,182.03,3.0]
[1753027295856,2.97,182.09,182.03,3.0]
[1753027296057,107.49,182.09,182.03,3.0]
[1753027296356,2.97,182.12,182.08,3.0]
[1753027296558,107.49,182.11,182.08,3.0]
[1753027296856,2.97,182.1,182.09,8.4894]
[1753027297059,4.53997024,182.15,182.09,3.0]
[1753027297254,4.53997024,182.15,182.11,3.0]
[1753027297255,2.97,182.12,182.11,3.0]
[1753027297455,107.49,182.12,182.11,3.0]
[1753027297658,107.49,182.12,182.11,8.4888]
[1753027297958,10.02777024,182.15,182.01,7.56116424]
[1753027297959,104.52,182.13,182.01,7.56116424]
[1753027298255,104.52,182.13,182.02,3.0]
[1753027298459,4.53997024,182.15,182.02,3.0]
[1753027298865,7.50997024,182.15,182.03,3.0]
[1753027299055,7.50997024,182.15,182.04,3.0]
[1753027299656,2.97,182.14,182.04,3.0]
[1753027299862,2.97,182.13,182.11,3.0]
[1753027300064,2.97,182.13,182.12,3.0]
[1753027300669,2.97,182.13,182.01,4.56116424]
[1753027300867,2.97,182.13,182.02,3.0]
[1753027301468,2.97,182.13,182.11,5.4888]
[1753027301669,2.97,182.13,182.12,3.0]
[1753027302274,2.97,182.13,182.1,3.0]
[1753027302469,2.97,182.12,182.11,3.0]
[1753027302764,2.97,182.14,182.12,3.0]
[1753027302973,2.97,182.13,182.12,3.0]
[1753027303168,2.97,182.13,182.11,8.4888]
[1753027303664,109.01997024,182.15,182.11,3.0]
[1753027303868,2.97,182.14,182.11,3.0]
[1753027304060,2.97,182.14,182.1,5.489]
[1753027304266,2.97,182.14,182.09,3.0]
[1753027304866,2.97,182.14,182.07,3.0]
[1753027305267,2.97,182.13,182.07,3.0]
[1753027306570,2.97,182.13,182.1,5.4889]
[1753027307266,2.97,182.13,182.09,5.4893]
[1753027307972,2.97,182.13,182.08,3.0]
[1753027308273,2.97,182.12,182.0,10.9841]
[1753027308464,2.97,182.12,182.09,3.0]
[1753027308971,2.97,182.12,182.0,10.9841]
[1753027309174,2.97,182.12,182.08,3.0]
[1753027309369,2.97,182.12,182.01,3.0]
[1753027309676,2.97,182.14,182.01,3.0]
[1753027310372,2.97,182.14,182.11,3.0]
[1753027310874,5.488,182.14,182.09,8.4892]
[1753027311075,2.97,182.13,182.09,8.4892]
[1753027311379,2.97,182.13,182.07,3.0]
[1753027311674,2.97,182.12,182.07,3.0]
[1753027312069,2.97,182.12,182.08,3.0]
[1753027312269,2.97,182.12,182.09,3.0]
[1753027312670,2.97,182.12,182.07,3.0]
[1753027312873,2.97,182.09,181.96,3.0]
[1753027313273,2.97,182.09,182.06,5.4901]
[1753027313474,2.97,182.09,182.06,8.4901]
[1753027313674,2.97,182.09,182.06,3.0]
[1753027314677,2.97,182.09,182.06,8.4901]
[1753027314872,2.97,182.09,182.07,3.0]
[1753027315072,2.97,182.08,182.07,3.0]
[1753027315576,2.97,182.08,181.96,3.0]
[1753027316677,2.97,182.08,182.05,5.4906]
[1753027316872,2.97,182.08,182.06,3.0]
[1753027317074,2.97,182.09,182.07,3.0]
[1753027317269,106.42,182.11,182.07,3.0]
[1753027317470,2.97,182.1,182.08,3.0]
[1753027317669,2.97,182.1,182.07,5.4899]
[1753027318276,3.2,182.09,182.08,3.17]
[1753027318576,3.2,182.09,182.02,3.17]
[1753027318979,3.2,182.09,182.07,5.4898]
[1753027319179,3.2,182.08,182.07,3.17]
[1753027319772,3.2,182.11,182.08,8.6595]
[1753027319973,3.2,182.11,181.95,106.7]
[1753027319974,3.2,182.14,181.98,10.9853]
[1753027320173,3.2,182.13,181.99,3.17]
[1753027320678,8.6882,182.13,182.09,5.4894]
[1753027320878,3.2,182.13,182.09,8.6594]
[1753027321177,3.2,182.13,182.1,3.17]
[1753027321379,3.2,182.13,182.1,8.6591]
[1753027321883,8.6883,182.13,182.09,8.6592]
[1753027322084,3.2,182.12,182.09,3.17]
[1753027322283,3.2,182.12,182.1,3.17]
[1753027322582,3.2,182.12,182.09,5.4893]
[1753027323182,3.2,182.14,182.12,3.17]
[1753027323382,3.2,182.14,182.01,3.17]
[1753027323883,3.2,182.14,182.11,8.6586]
[1753027324279,3.2,182.14,182.12,3.17]
[1753027324583,3.2,182.13,182.12,3.17]
[1753027324881,3.2,182.13,182.12,8.6585]
[1753027325276,4.53997024,182.15,182.05,3.17]
[1753027325580,4.53997024,182.15,182.14,5.4879]
[1753027325776,4.53997024,182.15,182.14,8.6579]
[1753027325973,7.73997024,182.15,182.14,3.17]
[1753027326174,3.2,182.14,182.05,3.17]
[1753027327180,3.2,182.14,182.09,5.4891]
[1753027327379,3.2,182.12,181.99,3.17]
[1753027327775,3.2,182.12,181.99,4.56116424]
[1753027328083,3.2,182.12,182.0,3.17]
[1753027328285,3.2,182.12,182.09,3.17]
[1753027328880,7.73997024,182.15,182.09,3.17]
[1753027329080,4.53997024,182.15,182.09,3.17]
[1753027329281,3.2,182.14,182.09,3.17]
[1753027329483,3.2,182.14,182.0,3.17]
[1753027329676,3.2,182.14,182.01,3.17]
[1753027330180,4.53997024,182.15,182.01,4.56116424]
[1753027330483,4.53997024,182.15,182.13,3.17]
[1753027331085,4.53997024,182.15,182.14,3.17]
[1753027331584,4.53997024,182.15,182.14,8.6579]
[1753027334678,4.47997024,182.15,182.14,5.4879]
[1753027334982,212.21446677,182.23,182.09,3.17]
[1753027335375,323.71446677,182.23,182.05,3.17]
[1753027335777,323.71446677,182.23,182.07,3.17]
[1753027336583,5.4864,182.19,182.14,3.17]
[1753027336783,3.2,182.18,182.15,3.17]
[1753027337379,3.2,182.17,182.05,4.56116424]
[1753027337580,323.71446677,182.23,182.16,3.17]
[1753027337885,3.2,182.18,182.17,3.17]
[1753027338088,3.2,182.18,182.04,6.10578407]
[1753027338089,3.2,182.18,182.15,3.17]
[1753027338892,3.2,182.18,182.15,8.6574]
[1753027339784,3.2,182.17,182.16,3.17]
[1753027340293,3.2,182.2,182.17,3.17]
[1753027340487,3.2,182.2,182.09,3.17]
[1753027340682,3.2,182.17,182.09,3.17]
[1753027341885,5.4871,182.17,182.09,3.17]
[1753027342089,329.84114409,182.23,182.09,3.17]
[1753027342090,3.2,182.16,182.09,3.17]
[1753027342591,3.2,182.15,182.12,3.17]
[1753027343089,3.2,182.14,182.13,3.17]
[1753027343285,3.2,182.15,182.14,3.17]
[1753027343690,3.2,182.22,182.14,3.17]
[1753027344190,3.2,182.16,182.15,3.17]
[1753027344594,3.2,182.18,182.15,5.4876]
[1753027344897,3.2,182.18,182.17,3.17]
[1753027345086,5.4864,182.19,182.15,5.4875]
[1753027345287,8.6864,182.19,182.18,3.17]
[1753027345487,3.2,182.19,182.08,3.17]
[1753027345794,3.2,182.17,182.15,3.17]
[1753027345992,3.2,182.17,182.16,3.17]
[1753027346993,5.4868,182.18,182.16,3.17]
[1753027347201,3.2,182.17,182.16,3.17]
[1753027347394,3.2,182.17,182.16,8.6573]
[1753027347595,5.4865,182.19,182.16,5.4873]
[1753027347793,3.2,182.18,182.17,3.17]
[1753027347994,8.6867,182.18,182.17,3.17]
[1753027348492,8.6867,182.18,182.14,5.4877]
[1753027348493,3.24,182.17,182.14,5.4877]
[1753027348697,3.24,182.16,182.15,3.26]
[1753027349098,3.24,182.18,182.15,3.26]
[1753027349502,323.71446677,182.23,182.06,4.54270786]
[1753027349503,3.24,182.17,182.16,3.26]
[1753027352607,3.24,182.17,182.16,8.7473]
[1753027352907,3.24,182.17,182.16,3.26]
[1753027353107,8.727,182.17,182.16,3.26]
[1753027353303,3.24,182.17,182.16,3.26]
[1753027353607,8.727,182.17,182.15,5.4875]
[1753027353804,3.24,182.16,182.15,8.7475]
[1753027354206,3.24,182.15,182.13,8.748]
[1753027354510,3.24,182.15,182.05,3.26]
[1753027354809,5.4881,182.14,182.03,15.52490786]
[1753027355109,3.24,182.12,182.11,3.26]
[1753027355309,3.24,182.12,182.11,8.7488]
[1753027355901,3.24,182.12,182.1,5.489]
[1753027356112,3.24,182.12,182.09,3.26]
[1753027356501,5.4886,182.12,182.09,3.26]
[1753027356712,3.24,182.1,182.09,3.26]
[1753027357013,3.24,182.1,182.09,8.7494]
[1753027357508,3.24,182.1,182.09,3.26]
[1753027357806,3.24,182.1,182.07,3.26]
[1753027358317,3.24,182.08,182.07,3.26]
[1753027359213,3.24,182.08,182.07,8.75]
[1753027359712,3.24,182.08,182.07,3.26]
[1753027362014,3.24,182.08,182.07,8.75]
[1753027363218,8.7292,182.1,182.08,3.26]
[1753027363519,8.7292,182.1,182.09,3.26]
[1753027364623,5.4892,182.1,182.07,5.49]
[1753027364830,5.4895,182.09,182.07,3.26]
[1753027365125,3.24,182.09,182.08,3.26]
[1753027367829,3.24,182.12,182.08,3.26]
[1753027368133,3.24,182.14,182.08,3.26]
[1753027369028,3.24,182.14,182.13,3.26]
[1753027370938,3.24,182.15,182.13,3.26]
[1753027371137,3.24,182.15,182.14,3.26]
[1753027373434,3.24,182.15,182.12,5.4883]
[1753027373739,3.24,182.14,182.12,5.4883]
[1753027374039,3.24,182.16,182.12,5.4883]
[1753027374234,3.24,182.16,182.13,8.7482]
[1753027374441,3.24,182.15,182.14,3.26]
[1753027376135,3.24,182.17,182.14,3.26]
[1753027376336,3.24,182.16,182.14,3.26]
[1753027376638,3.24,182.16,182.11,5.4887]
[1753027376639,5.4876,182.16,182.11,5.4887]
[1753027376841,3.24,182.15,182.12,3.26]
[1753027377239,3.24,182.15,182.12,8.7485]
[1753027377436,3.24,182.15,182.13,3.26]
[1753027377740,8.7276,182.15,182.13,3.26]
[1753027378140,8.7276,182.15,182.14,3.05]
[1753027379235,3.24,182.15,182.14,3.05]
[1753027379437,3.11,182.17,182.14,3.05]
[1753027379633,153.88774681,182.18,182.14,3.05]
[1753027379839,3.11,182.16,182.14,3.05]
[1753027380039,8.5975,182.16,182.14,3.05]
[1753027380237,153.88774681,182.18,182.14,3.05]
[1753027380430,3.11,182.17,182.14,3.05]
[1753027380635,3.11,182.16,182.14,3.05]
[1753027380838,3.11,182.16,182.15,3.05]
[1753027382448,8.5971,182.17,182.16,3.05]
[1753027382645,3.11,182.17,182.16,3.05]
[1753027382948,3.11,182.21,182.16,3.05]
[1753027383147,8.5966,182.19,182.16,3.05]
[1753027383341,3.11,182.19,182.16,3.05]
[1753027383745,8.5958,182.21,182.16,8.5372]
[1753027383946,3.11,182.2,182.17,3.05]
[1753027384546,3.11,182.19,182.08,10.9793]
[1753027384743,3.11,182.19,182.09,3.05]
[1753027384943,8.5966,182.19,182.09,3.05]
[1753027385144,3.11,182.19,182.09,3.05]
[1753027385545,3.11,182.19,182.15,5.4874]
[1753027385847,3.11,182.19,182.16,3.05]
[1753027386050,108.9,182.23,182.16,3.05]
[1753027386346,3.11,182.2,182.17,3.05]
[1753027387245,8.5961,182.2,182.17,3.05]
[1753027387554,3.11,182.19,182.17,3.05]
[1753027387846,5.4862,182.2,182.17,3.05]
[1753027388046,157.10149497,182.26,182.17,3.05]
[1753027388246,3.11,182.24,182.17,3.05]
[1753027388451,8.596,182.21,182.17,3.05]
[1753027388842,8.596,182.21,182.17,8.537]
[1753027389038,8.596,182.21,182.18,3.05]
[1753027390642,3.11,182.21,182.18,3.05]
[1753027390847,108.32,182.25,182.18,3.05]
[1753027391147,3.11,182.2,182.17,3.05]
[1753027392547,3.11,182.19,182.17,3.05]
[1753027392944,3.11,182.19,182.05,3.05]
[1753027393342,5.487,182.17,182.05,3.05]
[1753027393544,3.11,182.16,182.05,3.05]
[1753027393946,3.11,182.15,182.12,3.05]
[1753027394446,108.32,182.2,182.12,3.05]
[1753027394647,3.11,182.14,182.12,3.05]
[1753027395153,3.11,182.14,182.13,3.05]
[1753027395840,3.11,182.19,182.11,3.05]
[1753027396041,3.11,182.19,182.13,5.4882]
[1753027396247,3.11,182.19,182.14,3.05]
[1753027396451,5.4869,182.18,182.14,3.05]
[1753027396751,3.11,182.16,182.15,3.05]
[1753027397852,3.11,182.16,182.05,3.05]
[1753027398152,3.11,182.16,182.13,3.05]
[1753027398355,3.11,182.16,182.14,3.05]
[1753027398754,3.11,182.19,182.14,3.05]
[1753027399156,3.11,182.15,182.12,3.05]
[1753027399355,3.11,182.15,182.13,3.05]
[1753027399555,8.5978,182.15,182.13,3.05]
[1753027399854,3.11,182.14,182.13,3.05]
[1753027401046,3.11,182.19,182.13,3.05]
[1753027401549,3.11,182.17,182.14,3.05]
[1753027401750,3.11,182.16,182.14,3.05]
[1753027402752,3.11,182.16,182.15,3.05]
[1753027403153,3.11,182.16,182.13,3.05]
[1753027403357,3.11,182.15,182.14,3.05]
[1753027403953,3.11,182.17,182.03,112.71000442]
[1753027404153,3.11,182.15,182.13,3.05]
[1753027404352,5.4875,182.16,182.13,3.05]
[1753027404353,3.11,182.14,182.13,3.05]
[1753027409257,8.5169,182.18,182.14,5.4879]
[1753027409463,8.5169,182.18,182.05,3.03]
[1753027409464,3.03,182.18,182.05,3.03]
[1753027409966,3.03,182.16,182.05,3.03]
[1753027410761,3.03,182.16,182.14,3.03]
[1753027412565,3.03,182.16,182.14,5.4879]
[1753027412866,3.03,182.16,182.15,3.03]
[1753027414358,3.03,182.17,182.15,3.03]
[1753027414767,8.5171,182.17,182.14,5.4878]
[1753027414967,3.03,182.16,182.15,8.5176]
[1753027415165,3.03,182.19,182.16,3.03]
[1753027415362,3.03,182.17,182.16,3.03]
[1753027416462,3.03,182.18,182.16,3.03]
[1753027416764,3.03,182.18,182.07,3.03]
[1753027416963,3.03,182.18,182.17,3.03]
[1753027417371,3.03,182.2,182.17,3.03]
[1753027417566,3.03,182.19,182.18,3.03]
[1753027418165,3.03,182.19,182.18,8.5167]
[1753027418365,3.03,182.19,182.18,3.03]
[1753027419564,3.03,182.19,182.16,3.03]
[1753027419869,3.03,182.19,182.08,3.03]
[1753027420369,3.03,182.18,182.08,3.03]
[1753027421870,5.4866,182.19,182.07,120.14970343]
[1753027421871,5.4866,182.19,182.15,5.4875]
[1753027422071,3.03,182.17,182.16,3.03]
[1753027422471,5.4866,182.19,182.16,3.03]
[1753027422770,5.4866,182.19,182.15,5.4875]
[1753027422771,3.03,182.18,182.17,3.03]
[1753027423072,8.5167,182.18,182.17,3.03]
[1753027423472,3.03,182.18,182.15,3.03]
[1753027423873,3.03,182.17,182.15,3.03]
[1753027424374,3.03,182.16,182.15,8.5176]
[1753027424771,8.5168,182.18,182.16,3.03]
[1753027425072,8.5168,182.18,182.17,3.03]
[1753027425874,3.03,182.18,182.17,3.03]
[1753027426576,8.5167,182.18,182.17,3.03]
[1753027426874,8.5167,182.18,182.15,3.03]
[1753027427075,3.03,182.17,182.16,3.03]
[1753027428282,8.5165,182.19,182.16,8.5173]
[1753027428575,3.03,182.19,182.17,3.03]
[1753027428775,3.03,182.19,182.18,3.03]
[1753027429379,3.03,182.19,182.18,8.5167]
[1753027430077,3.03,182.19,182.18,3.03]
[1753027430977,6.13961141,182.22,182.08,108.06]
[1753027431177,3.03,182.21,182.09,3.03]
[1753027431374,5.4866,182.19,182.15,5.4873]
[1753027431673,3.03,182.18,182.16,3.03]
[1753027432280,3.03,182.18,182.17,3.03]
[1753027432980,3.03,182.18,182.08,3.03]
[1753027433380,9.16961141,182.2,182.08,3.03]
[1753027433676,5.4864,182.19,182.16,3.03]
[1753027433880,3.03,182.2,182.16,3.03]
[1753027434076,3.03,182.2,182.17,5.4868]
[1753027434277,3.03,182.2,182.18,3.03]
[1753027434480,3.03,182.2,182.19,3.03]
[1753027435275,11.62511141,182.23,182.19,8.5162]
[1753027435479,3.03,182.21,182.2,3.03]
[1753027436279,8.516,182.21,182.1,3.03]
[1753027436479,3.03,182.2,182.19,3.03]
[1753027437182,11.62521141,182.22,182.19,3.03]
[1753027437183,8.5156,182.22,182.19,3.03]
[1753027437374,3.03,182.21,182.19,3.03]
[1753027438178,3.03,182.21,182.2,3.04]
[1753027438386,3.02,182.22,182.2,3.04]
[1753027438580,3.02,182.22,182.2,8.5261]
[1753027438777,3.02,182.22,182.21,3.04]
[1753027438973,3.02,182.23,182.21,3.04]
[1753027439380,6.13961141,182.25,182.21,3.04]
[1753027439578,15.34902854,182.37,182.21,3.04]
[1753027439579,3.02,182.28,182.21,3.04]
[1753027439783,3.02,182.28,182.25,5.4844]
[1753027439977,3.02,182.28,182.26,3.04]
[1753027440172,8.504,182.27,182.26,3.04]
[1753027440377,3.02,182.26,182.25,3.04]
[1753027440783,3.02,182.26,182.23,3.04]
[1753027441084,3.02,182.26,182.21,3.04]
[1753027441278,3.02,182.25,182.21,3.04]
[1753027441781,5.485,182.24,182.22,3.04]
[1753027442086,3.02,182.23,182.22,3.04]
[1753027442285,3.02,182.25,182.22,3.04]
[1753027442589,3.02,182.24,182.23,3.04]
[1753027443077,3.02,182.23,182.22,3.04]
[1753027443474,5.4852,182.23,182.13,3.04]
[1753027444084,8.5052,182.23,182.17,3.04]
[1753027444683,8.5052,182.23,182.2,3.04]
[1753027445486,3.02,182.26,182.2,3.04]
[1753027445783,3.02,182.26,182.25,3.04]
[1753027447182,5.4843,182.26,182.13,4.55700668]
[1753027447489,3.02,182.27,182.13,4.55700668]
[1753027447490,3.02,182.27,182.14,3.04]
[1753027447790,3.02,182.25,182.23,3.04]
[1753027447981,3.02,182.24,182.23,3.04]
[1753027448488,6.13961141,182.32,182.23,5.4852]
[1753027448683,3.02,182.25,182.24,3.04]
[1753027448884,5.4843,182.27,182.24,3.04]
[1753027449086,3.02,182.26,182.24,3.04]
[1753027449584,8.5043,182.27,182.24,3.04]
[1753027449785,3.02,182.26,182.25,3.04]
[1753027450884,8.5043,182.26,182.25,3.04]
[1753027451789,8.5043,182.26,182.23,5.4851]
[1753027451790,8.5043,182.26,182.23,8.5251]
[1753027452082,6.13961141,182.32,182.13,15.53310668]
[1753027452083,8.5046,182.25,182.24,3.04]
[1753027452287,8.5046,182.25,182.22,5.4855]
[1753027452288,5.4846,182.25,182.22,5.4855]
[1753027452480,3.02,182.24,182.23,3.04]
[1753027452682,3.02,182.24,182.23,8.5252]
[1753027452886,3.02,182.31,182.24,3.04]
[1753027453385,3.02,182.31,182.25,3.04]
[1753027453783,5.4843,182.26,182.25,3.04]
[1753027453993,8.5043,182.26,182.25,3.04]
[1753027454193,3.02,182.26,182.25,3.04]
[1753027454483,8.5041,182.27,182.26,3.04]
[1753027454788,3.02,182.29,182.26,3.04]
[1753027455588,3.02,182.28,182.27,3.04]
[1753027456184,8.5031,182.3,182.27,5.484]
[1753027456391,3.02,182.29,182.17,10.9738]
[1753027456785,3.02,182.29,182.18,3.04]
[1753027456986,3.02,182.29,182.22,3.04]
[1753027457285,5.4831,182.3,182.22,3.04]
[1753027457487,8.5031,182.3,182.22,3.04]
[1753027457700,3.02,182.3,182.22,3.04]
[1753027457985,6.13961141,182.35,182.22,3.04]
[1753027457986,3.02,182.35,182.22,3.04]
[1753027458287,3.02,182.31,182.3,3.04]
[1753027459693,8.5028,182.31,182.3,3.04]
[1753027461489,3.02,182.29,182.18,10.9734]
[1753027462202,3.02,182.29,182.28,8.5237]
[1753027462700,3.02,182.31,182.3,3.04]
[1753027463190,108.76,182.37,182.3,3.04]
[1753027463495,3.02,182.35,182.31,3.04]
[1753027463695,3.02,182.36,182.31,3.04]
[1753027463999,3.02,182.33,182.31,3.04]
[1753027464393,3.02,182.35,182.32,5.4823]
[1753027464595,3.02,182.36,182.25,3.04]
[1753027465095,5.482,182.34,182.31,5.4826]
[1753027465292,3.02,182.33,182.24,10.9698]
[1753027465497,3.02,182.33,182.31,5.4826]
[1753027465701,5.482,182.34,182.32,3.04]
[1753027465897,3.02,182.34,182.32,3.04]
[1753027466097,3.02,182.34,182.33,3.04]
[1753027466797,4.53997024,182.4,182.33,3.04]
[1753027466997,3.02,182.39,182.33,3.04]
[1753027467200,5.4815,182.36,182.33,8.522]
[1753027467501,5.4815,182.36,182.25,3.04]
[1753027467502,8.5015,182.36,182.25,3.04]
[1753027467699,8.5015,182.36,182.33,5.4819]
[1753027467999,3.02,182.36,182.25,3.04]
[1753027468297,8.5015,182.36,182.33,5.482]
[1753027468498,8.5015,182.36,182.34,3.16]
[1753027468700,3.18,182.35,182.34,3.16]
[1753027469499,3.18,182.35,182.34,8.6419]
[1753027469800,3.18,182.35,182.34,3.16]
[1753027470000,5.4814,182.36,182.34,3.16]
[1753027470201,8.6614,182.36,182.34,3.16]
[1753027470902,3.18,182.36,182.34,3.16]
[1753027471601,3.18,182.36,182.35,3.16]
[1753027472305,8.6615,182.36,182.35,3.16]
[1753027472501,3.18,182.39,182.21,16.4573]
[1753027472709,3.18,182.39,182.23,7.71700668]
[1753027472901,3.18,182.39,182.24,3.16]
[1753027473299,4.53997024,182.4,182.29,3.16]
[1753027474002,13.20007024,182.4,182.3,3.16]
[1753027474602,10.02007024,182.4,182.29,10.9667]
[1753027474808,3.18,182.39,182.37,3.16]
[1753027475102,4.53997024,182.4,182.3,3.16]
[1753027475608,3.18,182.5,182.47,3.16]
[1753027475908,3.18,182.6,182.42,3.16]
[1753027476107,3.18,182.51,182.42,3.16]
[1753027476706,3.18,182.51,182.37,10.9615]
[1753027476904,3.18,182.51,182.44,3.16]
[1753027477308,3.18,182.51,182.37,10.9615]
[1753027477309,3.18,182.51,182.48,3.16]
[1753027477609,8.6569,182.51,182.48,3.16]
[1753027477810,3.18,182.5,182.48,3.16]
[1753027478007,19.67,182.6,182.48,3.16]
[1753027478307,3.18,182.59,182.48,3.16]
[1753027478507,16.49,182.6,182.48,8.6376]
[1753027478808,3.18,182.49,182.48,8.6376]
[1753027480109,3.18,182.49,182.38,3.16]
[1753027480811,3.18,182.48,182.37,10.9615]
[1753027481001,3.18,182.48,182.38,3.16]
[1753027482410,3.18,182.48,182.31,487.2652]
[1753027482411,16.49,182.58,182.33,10.9642]
[1753027482613,3.18,182.56,182.44,3.16]
[1753027483111,3.18,182.46,182.44,3.16]
[1753027483313,3.18,182.46,182.34,3.16]
[1753027483812,3.18,182.45,182.34,3.16]
[1753027484112,3.18,182.45,182.42,5.4793]
[1753027484412,3.18,182.44,182.43,3.16]
[1753027484914,3.18,182.44,182.43,8.6392]
[1753027485313,3.18,182.44,182.43,3.16]
[1753027485609,3.18,182.43,182.42,3.16]
[1753027485809,3.18,182.43,182.34,3.16]
[1753027486009,8.6592,182.43,182.39,5.4803]
[1753027486215,3.18,182.43,182.4,3.16]
[1753027487210,124.71,182.58,182.41,3.16]
[1753027487211,3.18,182.42,182.41,3.16]
[1753027487411,3.18,182.43,182.42,3.16]
[1753027488214,3.18,182.43,182.4,3.16]
[1753027488414,3.18,182.42,182.41,3.16]
[1753027488713,3.18,182.42,182.34,3.16]
[1753027489706,3.18,182.48,182.34,3.16]
[1753027490316,3.18,182.48,182.45,3.16]
[1753027490519,3.18,182.47,182.45,3.16]
[1753027490808,3.18,182.48,182.45,3.16]
[1753027491812,3.18,182.48,182.33,108.42]
[1753027492010,3.18,182.48,182.31,470.24811795]
[1753027492210,3.18,182.47,182.42,5.4795]
[1753027492414,3.18,182.47,182.42,8.6395]
[1753027493115,8.6581,182.47,182.42,8.6395]
[1753027493306,3.18,182.46,182.43,5.4792]
[1753027493510,3.18,182.46,182.43,8.6392]
[1753027493915,3.18,182.46,182.44,5.4789]
[1753027494611,3.18,182.46,182.43,3.16]
[1753027495514,3.18,182.46,182.37,3.16]
[1753027495812,3.18,182.43,182.37,3.16]
[1753027496612,3.18,182.41,182.35,3.16]
[1753027496808,3.18,182.41,182.32,3.16]
[1753027497014,5.4803,182.4,182.32,3.16]
[1753027497214,3.18,182.39,182.32,3.16]
[1753027497511,3.18,182.39,182.36,5.4812]
[1753027497914,3.18,182.39,182.34,3.16]
[1753027498115,3.18,182.39,182.35,5.4814]
[1753027498415,3.18,182.39,182.32,3.06]